Cogmind - Beta 12 @@@ ROGUE MODE // 2023.05.12 @ 21:04:27 Player: Mr Goldstein Result: Destroyed by Tracker with Linked Autogun Performance ------------- Evolutions (9) 4500 Regions Visited (25) 5000 Robots Destroyed (34) 170 Value Destroyed (911) 911 Prototype IDs (21) 420 Alien Tech Used (5) 1000 Bonus (10930) 10930 TOTAL SCORE: 22931 Bonus ------- Pacifist 834 Follower Combat Kills 522 Network Hubs Disabled 200 Met Data Miner 300 Met Zhirov 300 Found Hidden Lab 3000 Used Core Reset Matrix 3000 Pursued by Intercept 1000 Acquired SGEMP 2000 Friendly Fire -226 Cogmind --------- Core Integrity 0/1600 Matter 107/300 Energy 100/100 System Corruption 4% Temperature Cool (0) Movement Core (50) Location -1/Access Parts ------- > --- POWER (1) -------- (None) > --- PROPULSION (11) -- (None) > --- UTILITY (12) ----- Advanced System Shield > --- WEAPON (2) ------- (None) > --- INVENTORY (5) ---- Light Quantum Reactor Quantum Router Peak State ------------ > --- POWER ------------ Light Quantum Reactor > --- PROPULSION ------- Field Propulsion Array Q-thruster Q-thruster Q-thruster Q-thruster Q-thruster Cooled Q-thruster Cooled Q-thruster Cooled Q-thruster Cooled Q-thruster > --- UTILITY ---------- Enhanced Optical Array Medium Regenerative Plating Hacking Suite Improved Hacking Suite System Shield System Shield Improved System Shield Advanced System Shield Advanced System Shield > --- WEAPON ----------- Power Sword > --- INVENTORY -------- Light Quantum Reactor Q-thruster Q-thruster Cooled Q-thruster Quantum Router [Rating: 155] Favorites ----------- Power Light Angular Momentum Engine Engine Light Angular Momentum Engine Power Core Light Nuclear Core Reactor Light Quantum Reactor Propulsion Xenon Bombardment Thruster Treads Light Treads Wheel Armored Huge Wheel Flight Unit Xenon Bombardment Thruster Utility Enhanced Optical Array Device Advanced Transmission Jammer Storage Matter Compressor Processor Enhanced Optical Array Hackware Hacking Suite Protection Light Armor Plating Weapon Power Sword Energy Cannon Null Cannon Launcher Heavy Missile Launcher Impact Weapon Great Maul Slashing Weapon Power Sword Piercing Weapon Lance Build | -11 -10 -9 -8 -7 -7 -7 -7 -6 -6 -6 -6 -6 -6 -5 -5 -5 -5 -4 -4 -4 -4 -3 -3 -2 -1 ------- Run | Jun Mat Mat Mat Fac Low Low Dat Pro Fac Ext Cet Arc Hub Fac Upp Upp Zhi Pro Fac Arm Lab Res Tes Res Acc Slots Evolved 18 | . . 2 2 2 . . . . 2 . . . . 2 . . . . 2 . . 2 . 2 2 Power . | . . . . . . . . . . . . . . . . . . . . . . . . . . Propulsion 9 | . . 1 1 1 . . . . 1 . . . . 1 . . . . 1 . . 1 . 1 1 Utility 9 | . . 1 1 1 . . . . 1 . . . . 1 . . . . 1 . . 1 . 1 1 Weapon . | . . . . . . . . . . . . . . . . . . . . . . . . . . Parts Attached 104 | 2 . 2 2 2 2 2 . 5 11 6 . 5 1 8 . 1 5 1 14 . 2 10 2 8 13 Power 9 | . . . . . . . . . . 1 . 1 . 1 . . 1 . 1 . . 2 . 1 1 Engine 2 | . . . . . . . . . . 1 . 1 . . . . . . . . . . . . . Core 3 | . . . . . . . . . . . . . . 1 . . 1 . . . . 1 . . . Reactor 4 | . . . . . . . . . . . . . . . . . . . 1 . . 1 . 1 1 Propulsion 39 | 2 . . 1 . 1 . . . 6 2 . 1 . 3 . . . . 4 . . 4 . 6 9 Treads 3 | 2 . . 1 . . . . . . . . . . . . . . . . . . . . . . Leg . | . . . . . . . . . . . . . . . . . . . . . . . . . . Wheel 1 | . . . . . 1 . . . . . . . . . . . . . . . . . . . . Hover . | . . . . . . . . . . . . . . . . . . . . . . . . . . Flight 35 | . . . . . . . . . 6 2 . 1 . 3 . . . . 4 . . 4 . 6 9 Utility 37 | . . 2 1 2 1 2 . . 4 2 . 3 . . . . 3 1 7 . 1 4 1 1 2 Device 6 | . . . . . . . . . 1 1 . . . . . . . . 3 . . 1 . . . Storage 3 | . . . . . . . . . . . . 1 . . . . 1 . 1 . . . . . . Processor 4 | . . . . 1 . 1 . . 1 1 . . . . . . . . . . . . . . . Hackware 16 | . . . . . 1 . . . 2 . . 2 . . . . 1 1 3 . . 2 1 1 2 Protection 8 | . . 2 1 1 . 1 . . . . . . . . . . 1 . . . 1 1 . . . Artifact . | . . . . . . . . . . . . . . . . . . . . . . . . . . Weapon 19 | . . . . . . . . 5 1 1 . . 1 4 . 1 1 . 2 . 1 . 1 . 1 Energy Gun . | . . . . . . . . . . . . . . . . . . . . . . . . . . Energy Cannon 1 | . . . . . . . . . . . . . . . . . . . . . . . 1 . . Ballistic Gun . | . . . . . . . . . . . . . . . . . . . . . . . . . . Ballistic Cannon . | . . . . . . . . . . . . . . . . . . . . . . . . . . Launcher 8 | . . . . . . . . 4 . . . . 1 2 . . . . 1 . . . . . . Special Weapon . | . . . . . . . . . . . . . . . . . . . . . . . . . . Impact Weapon 1 | . . . . . . . . 1 . . . . . . . . . . . . . . . . . Slashing Weapon 8 | . . . . . . . . . 1 1 . . . 2 . 1 1 . 1 . 1 . . . . Piercing Weapon 1 | . . . . . . . . . . . . . . . . . . . . . . . . . 1 Special Melee Weapon . | . . . . . . . . . . . . . . . . . . . . . . . . . . Unidentified Prototypes 14 | . . . . . . . . . . 1 . . . 1 . . 3 . 2 1 2 . 1 2 1 Parts Lost 60 | . . . 3 . . 3 . 1 . 3 5 2 1 1 1 2 . 2 10 . . . . . 26 Power 5 | . . . . . . . . . . . 1 . . . 1 . . 1 . . . . . . 2 Propulsion 31 | . . . 2 . . 1 . . . 2 3 2 . . . 1 . 1 4 . . . . . 15 Utility 22 | . . . 1 . . 2 . 1 . 1 1 . 1 . . 1 . . 6 . . . . . 8 Weapon 2 | . . . . . . . . . . . . . . 1 . . . . . . . . . . 1 Highest Loss Streak 18 | . . . 3 . . 2 . 1 . 2 5 2 1 1 1 2 . 1 5 . . . . . 18 To Critical Strikes . | . . . . . . . . . . . . . . . . . . . . . . . . . . Average Slot Usage (%) 51 | . 28 28 30 . 22 28 23 21 40 90 74 72 46 52 56 51 50 55 38 . 29 55 65 72 50 Engine 1 | . . . . . . . . . . 3 4 5 . . . . . . . . . . . . . Treads 1 | . 28 22 24 . . . . . . . . . . . . . . . . . . . . . . Flight 15 | . . . . . . . . . 8 37 26 19 6 15 23 22 17 15 10 . 5 19 22 28 19 Device 1 | . . . . . . . . . . 6 3 . . . . . . . 2 . 5 4 4 4 . Storage 1 | . . . . . . . . . . . . 6 6 5 5 5 5 5 . . . . . . . Processor 9 | . . . . . 7 10 15 15 19 16 13 13 13 11 11 10 5 5 5 . 5 4 4 4 2 Hackware 11 | . . . . . . 7 7 3 6 13 13 20 20 11 11 11 13 19 15 . 10 14 19 23 19 Protection 1 | . . 6 6 . 7 6 . . . . . . . . . . 1 5 2 . . 3 4 4 1 Slashing Weapon 3 | . . . . . . . . . 5 12 13 6 . 2 . . 3 . . . 4 4 4 4 1 Naked Turns 26 | . . . 1 25 . . . . . . . . . . . . . . . . . . . . . Heaviest Build 27 | . . 3 3 3 3 3 . 14 5 18 16 17 5 13 10 8 19 16 17 1 4 20 20 27 27 Greatest Support 83 | 40 3 3 3 3 3 3 3 3 30 36 30 18 6 20 20 20 16 16 20 6 6 60 60 67 83 Greatest Overweight (x) 4 | . . . . . . . . 4 . 2 . . . . . . 1 . . . . . . . 1 Average Overweight (x) . | . . . . . . . . . . . . . . . . . . . . . . . . . . Largest Inventory Capacity 5 | 5 5 5 5 5 5 5 5 5 5 5 5 5 5 5 5 5 5 5 5 5 5 5 5 5 5 Average Capacity 5 | 5 5 5 5 5 5 5 5 5 5 5 5 5 5 5 5 5 5 5 5 5 5 5 5 5 5 Most Carried 5 | . 2 4 5 5 5 5 4 5 5 5 5 5 5 5 5 5 5 5 5 4 5 5 5 5 5 Average Carried 4 | . . 3 4 4 5 4 4 4 4 4 5 3 4 3 5 4 4 5 4 4 3 4 4 4 3 Final Capacity 5 | 5 5 5 5 5 5 5 5 5 5 5 5 5 5 5 5 5 5 5 5 5 5 5 5 5 5 Final Carried 5 | . 2 4 5 5 5 4 4 5 5 5 5 5 5 5 5 5 5 5 5 4 5 4 4 5 2 Class Distribution -------------------- 35% | Hacker-Mutant 30% | Mutant 19% | Hacker-Sprinter 7% | Wizard-Sprinter 4% | Scavenger-Sprinter Dominant Class ---------------- Mutant | -10/Materials Mutant | -9/Materials Mutant | -8/Materials Mutant | -7/Factory Mutant | -7/Lower Caves Mutant | -7/Lower Caves Mutant | -7/Data Miner Mutant | -6/Proximity Caves Mutant | -6/Factory Hacker-Sprinter | -6/Extension Hacker-Sprinter | -6/Cetus Hacker-Mutant | -6/Archives Hacker-Mutant | -6/Hub_04(d) Scavenger-Sprinter | -5/Factory Scavenger-Sprinter | -5/Upper Caves Hacker-Sprinter | -5/Upper Caves Hacker-Sprinter | -5/Zhirov Hacker-Sprinter | -4/Proximity Caves Hacker-Mutant | -4/Factory Hacker-Mutant | -4/Armory Hacker-Mutant | -4/Lab Hacker-Sprinter | -3/Research Hacker-Sprinter | -3/Testing Wizard-Sprinter | -2/Research Wizard-Sprinter | -1/Access Resources | -11 -10 -9 -8 -7 -7 -7 -7 -6 -6 -6 -6 -6 -6 -5 -5 -5 -5 -4 -4 -4 -4 -3 -3 -2 -1 ----------- Run | Jun Mat Mat Mat Fac Low Low Dat Pro Fac Ext Cet Arc Hub Fac Upp Upp Zhi Pro Fac Arm Lab Res Tes Res Acc Matter Collected 1165 | 220 . . . . 51 11 . 120 47 444 . 40 . 122 . 10 20 . 80 . . . . . . Remotely . | . . . . . . . . . . . . . . . . . . . . . . . . . . Salvage Created 1593 | . . . . . . . . 66 47 405 . 139 285 198 . 50 247 . 156 . . . . . . Parts 83 | . . . . . . . . 1 6 16 . 12 15 18 . 1 2 . 12 . . . . . . Haulers Intercepted 2 | . . . . . . . . . . . . . 1 . . . . . 1 . . . . . . Recyclers Shooed . | . . . . . . . . . . . . . . . . . . . . . . . . . . Parts Field Recycled . | . . . . . . . . . . . . . . . . . . . . . . . . . . Retrieved Matter . | . . . . . . . . . . . . . . . . . . . . . . . . . . Parts Self-Destructed 8 | . . . . . . . . 4 . . . . . . 2 . 2 . . . . . . . . Prevented . | . . . . . . . . . . . . . . . . . . . . . . . . . . Kills | -11 -10 -9 -8 -7 -7 -7 -7 -6 -6 -6 -6 -6 -6 -5 -5 -5 -5 -4 -4 -4 -4 -3 -3 -2 -1 ------- Run | Jun Mat Mat Mat Fac Low Low Dat Pro Fac Ext Cet Arc Hub Fac Upp Upp Zhi Pro Fac Arm Lab Res Tes Res Acc Combat Hostiles Destroyed 13 | . . . . . . . . 1 . 2 . . 2 4 . . . . 4 . . . . . . Melee 2 | . . . . . . . . . . 2 . . . . . . . . . . . . . . . AOE 11 | . . . . . . . . 1 . . . . 2 4 . . . . 4 . . . . . . Classes Destroyed 12 | . . . . . . . . 1 2 5 . . 2 1 . 1 . . . . . . . . . Worker 3 | . . . . . . . . . . . . . 2 1 . . . . . . . . . . . Builder 6 | . . . . . . . . . 1 3 . . 1 . . . . . 1 . . . . . . Hauler 2 | . . . . . . . . . . . . . 1 . . . . . 1 . . . . . . Recycler 2 | . . . . . . . . . . 1 . . . 1 . . . . . . . . . . . Operator 6 | . . . . . . . . . 1 . . 4 . 1 . . . . . . . . . . . Watcher 1 | . . . . . . . . . . 1 . . . . . . . . . . . . . . . Swarmer 8 | . . . . . . . . . . . . . . 4 . . . . 4 . . . . . . Grunt 2 | . . . . . . . . 1 . . . . 1 . . . . . . . . . . . . Sentry 2 | . . . . . . . . . . 1 . . 1 . . . . . . . . . . . . Hunter 1 | . . . . . . . . . . 1 . . . . . . . . . . . . . . . Samaritan 1 | . . . . . . . . . . . . . . . . 1 . . . . . . . . . Savage 1 | . . . . . . . . . . 1 . . . . . . . . . . . . . . . Best Kill Streak 6 | . . . . . . . . 1 1 2 . 1 6 4 . . . . 5 . . . . . . Combat Bots Only 4 | . . . . . . . . 1 . 1 . . 2 4 . . . . 4 . . . . . . Max Kills in Single Turn 6 | . . . . . . . . 1 1 1 . 1 6 4 . 1 . . 3 . . . . . . Gunslinging . | . . . . . . . . . . . . . . . . . . . . . . . . . . Exploded 4 | . . . . . . . . 1 . . . . 2 4 . . . . 3 . . . . . . Melee 1 | . . . . . . . . . . 1 . . . . . . . . . . . . . . . Uniques/NPCs Destroyed . | . . . . . . . . . . . . . . . . . . . . . . . . . . Combat | -11 -10 -9 -8 -7 -7 -7 -7 -6 -6 -6 -6 -6 -6 -5 -5 -5 -5 -4 -4 -4 -4 -3 -3 -2 -1 -------- Run | Jun Mat Mat Mat Fac Low Low Dat Pro Fac Ext Cet Arc Hub Fac Upp Upp Zhi Pro Fac Arm Lab Res Tes Res Acc Damage Taken 8263 | . . 86 557 . 92 590 . 291 . 282 198 281 118 186 65 56 . 372 1027 . . 309 283 267 3203 Core 3655 | . . 12 172 . 62 242 . 225 . 51 19 195 76 71 13 . . 139 647 . . 22 48 45 1616 Absorbed by Shields 15 | . . . . . . . . . . 15 . . . . . . . . . . . . . . . Redirected to Shielding 151 | . . . . . . . . . . . . . . . . . . 87 64 . . . . . . Regen/Repaired (Parts) 174 | . . . . . . . . . . . . . . . . . . . . . . 30 44 46 54 Core Remaining (%) 74 | 100 100 97 68 . . . . 24 . . . . 59 . . . . 77 . . 39 . 87 96 . Volleys Fired 12 | . . . . . . . . 6 . . . . 1 2 . . . . 3 . . . . . . Largest 2 | . . . . . . . . 2 . . . . 1 1 . . . . 1 . . . . . . Hottest 78 | . . . . . . . . 78 . . . . 39 39 . . . . 39 . . . . . . Shots Fired 18 | . . . . . . . . 12 . . . . 1 2 . . . . 3 . . . . . . Gun . | . . . . . . . . . . . . . . . . . . . . . . . . . . Cannon . | . . . . . . . . . . . . . . . . . . . . . . . . . . Launcher 18 | . . . . . . . . 12 . . . . 1 2 . . . . 3 . . . . . . Special . | . . . . . . . . . . . . . . . . . . . . . . . . . . Kinetic . | . . . . . . . . . . . . . . . . . . . . . . . . . . Thermal . | . . . . . . . . . . . . . . . . . . . . . . . . . . Explosive 18 | . . . . . . . . 12 . . . . 1 2 . . . . 3 . . . . . . Electromagnetic . | . . . . . . . . . . . . . . . . . . . . . . . . . . Robot Hit Streak 6 | . . . . . . . . 6 . . . . . 1 . . . . 1 . . . . . . Robot Miss Streak 1 | . . . . . . . . 1 . . . . . 1 . . . . 1 . . . . . . Penetration Max . | . . . . . . . . . . . . . . . . . . . . . . . . . . Secondary Targets . | . . . . . . . . . . . . . . . . . . . . . . . . . . Shots Hit Robots 57 | . . . . . . . . 7 3 18 . 4 . 6 . 2 12 . 5 . . . . . . Core Hits 51 | . . . . . . 1 . 7 2 8 . 3 11 9 . 1 2 . 7 . . . . . . Critical Kills . | . . . . . . . . . . . . . . . . . . . . . . . . . . Critical Parts Destroyed . | . . . . . . . . . . . . . . . . . . . . . . . . . . Critical Strikes 2 | . . . . . . . . . . 1 . . . . . . . . 1 . . . . . . Sever 2 | . . . . . . . . . . 1 . . . . . . . . 1 . . . . . . Melee Attacks 65 | . . . . . . . . . 8 22 . 4 . 6 . 2 12 . 4 . 5 1 1 . . Impact . | . . . . . . . . . . . . . . . . . . . . . . . . . . Slashing 65 | . . . . . . . . . 8 22 . 4 . 6 . 2 12 . 4 . 5 1 1 . . Piercing . | . . . . . . . . . . . . . . . . . . . . . . . . . . Sneak Attacks 17 | . . . . . . . . . 2 6 . 4 . 2 . 2 . . 1 . . . . . . Combat Hostiles . | . . . . . . . . . . . . . . . . . . . . . . . . . . Follow-up Attacks 4 | . . . . . . . . . . 4 . . . . . . . . . . . . . . . Damage Inflicted 5601 | . . 3 . . . 21 . 605 204 1045 . 433 754 754 . 167 945 . 670 . . . . . . Guns . | . . . . . . . . . . . . . . . . . . . . . . . . . . Cannons . | . . . . . . . . . . . . . . . . . . . . . . . . . . Explosions 2211 | . . . . . . . . 605 . . . . 754 402 . . . . 450 . . . . . . Melee 3366 | . . . . . . . . . 204 1045 . 433 . 352 . 167 945 . 220 . . . . . . Ramming 24 | . . 3 . . . 21 . . . . . . . . . . . . . . . . . . . Kinetic . | . . . . . . . . . . . . . . . . . . . . . . . . . . Thermal . | . . . . . . . . . . . . . . . . . . . . . . . . . . Explosive 1457 | . . . . . . . . 605 . . . . . 402 . . . . 450 . . . . . . Electromagnetic 754 | . . . . . . . . . . . . . 754 . . . . . . . . . . . . Impact . | . . . . . . . . . . . . . . . . . . . . . . . . . . Slashing 3366 | . . . . . . . . . 204 1045 . 433 . 352 . 167 945 . 220 . . . . . . Piercing . | . . . . . . . . . . . . . . . . . . . . . . . . . . Highest Corruption 4 | . . . . . . 1 1 1 . . . . . . . . . 1 2 2 2 . 1 . 4 Average Corruption 1 | . . . . . . 1 1 1 . . . . . . . . . 1 2 2 2 . 1 . 1 Corruption Purged . | . . . . . . . . . . . . . . . . . . . . . . . . . . Corruption Blocked . | . . . . . . . . . . . . . . . . . . . . . . . . . . Effects 10 | . . . . . . . . 1 . . . . . . . . . . 4 . . . . . 5 Message Errors 5 | . . . . . . . . 1 . . . . . . . . . . 1 . . . . . 3 Matter Fused 1 | . . . . . . . . . . . . . . . . . . . 1 . . . . . . Heat Flow Errors 2 | . . . . . . . . . . . . . . . . . . . 1 . . . . . 1 Parts Rejected 1 | . . . . . . . . . . . . . . . . . . . 1 . . . . . . Data Loss (major) 1 | . . . . . . . . . . . . . . . . . . . . . . . . . 1 Overload Shots . | . . . . . . . . . . . . . . . . . . . . . . . . . . Overflow Damage 624 | . . . . . . . . 13 52 60 . 58 36 69 . 28 288 . 20 . . . . . . Projectiles . | . . . . . . . . . . . . . . . . . . . . . . . . . . Explosions 122 | . . . . . . . . 13 . . . . 36 53 . . . . 20 . . . . . . Melee 502 | . . . . . . . . . 52 60 . 58 . 16 . 28 288 . . . . . . . . Knockbacks . | . . . . . . . . . . . . . . . . . . . . . . . . . . Impact . | . . . . . . . . . . . . . . . . . . . . . . . . . . Kinetic . | . . . . . . . . . . . . . . . . . . . . . . . . . . Secondary . | . . . . . . . . . . . . . . . . . . . . . . . . . . Self-Inflicted Damage 45 | . . 1 . . . 9 . . . . . . . 35 . . . . . . . . . . . Shots 1 | . . . . . . . . . . . . . . 1 . . . . . . . . . . . Rammed 8 | . . 1 . . . 7 . . . . . . . . . . . . . . . . . . . Targets Rammed 8 | . . 1 . . . 7 . . . . . . . . . . . . . . . . . . . Kicked . | . . . . . . . . . . . . . . . . . . . . . . . . . . Crushed . | . . . . . . . . . . . . . . . . . . . . . . . . . . Highest Temperature 54 | . . . . . . . . 3 . . 11 . . . . . . . 54 . . . . 6 38 Average Temperature 13 | . . . . . . . . 1 . . 11 . . . . . . . 54 . . . . 6 38 Received Heat Transfer 1242 | . . 27 234 . 54 324 . 78 . 78 27 54 36 18 9 12 . 18 120 . . 45 . 54 54 Siege Activations . | . . . . . . . . . . . . . . . . . . . . . . . . . . Robots Corrupted . | . . . . . . . . . . . . . . . . . . . . . . . . . . Combat Hostiles . | . . . . . . . . . . . . . . . . . . . . . . . . . . Parts Fried 2 | . . . . . . . . . . . . . 2 . . . . . . . . . . . . Impact Corruptions . | . . . . . . . . . . . . . . . . . . . . . . . . . . Robots Melted . | . . . . . . . . . . . . . . . . . . . . . . . . . . Combat Hostiles . | . . . . . . . . . . . . . . . . . . . . . . . . . . Parts Melted . | . . . . . . . . . . . . . . . . . . . . . . . . . . Heat Transferred . | . . . . . . . . . . . . . . . . . . . . . . . . . . Parts Sabotaged . | . . . . . . . . . . . . . . . . . . . . . . . . . . Parts Stolen . | . . . . . . . . . . . . . . . . . . . . . . . . . . Parts Stripped . | . . . . . . . . . . . . . . . . . . . . . . . . . . Power Chain Reactions . | . . . . . . . . . . . . . . . . . . . . . . . . . . Missiles Intercepted . | . . . . . . . . . . . . . . . . . . . . . . . . . . Alert | -11 -10 -9 -8 -7 -7 -7 -7 -6 -6 -6 -6 -6 -6 -5 -5 -5 -5 -4 -4 -4 -4 -3 -3 -2 -1 ------- Run | Jun Mat Mat Mat Fac Low Low Dat Pro Fac Ext Cet Arc Hub Fac Upp Upp Zhi Pro Fac Arm Lab Res Tes Res Acc Peak Influence 591 | . . 90 147 79 . . . . 125 425 139 55 430 521 . . . . 591 289 . 437 290 207 399 Initial 289 | . . . 37 57 . . . . 87 60 124 41 15 210 . . . . 31 289 . . 245 162 124 Average 170 | . . 46 81 71 . . . . 103 232 125 43 86 398 . . . . 248 289 . 133 267 176 252 Maximum Alert Level 2 | . . . . . . . . . . 2 . . 2 2 . . . . 2 1 . 2 1 1 1 Low Security (%) 61 | 100 100 100 100 100 . . . . 100 27 100 100 87 . . . . . 53 . . 62 . 88 26 Level 1 29 | . . . . . . . . . . 70 . . . 37 . . . . 11 100 . 30 100 11 73 Level 2 9 | . . . . . . . . . . 2 . . 12 62 . . . . 35 . . 6 . . . Level 3 . | . . . . . . . . . . . . . . . . . . . . . . . . . . Level 4 . | . . . . . . . . . . . . . . . . . . . . . . . . . . Level 5 . | . . . . . . . . . . . . . . . . . . . . . . . . . . High Security . | . . . . . . . . . . . . . . . . . . . . . . . . . . Max Security . | . . . . . . . . . . . . . . . . . . . . . . . . . . Squads Dispatched 30 | . . . 3 1 . . . . 2 4 1 . . 5 . . . . 3 . . . 2 1 8 Investigation 11 | . . . 1 1 . . . . 1 3 1 . . 2 . . . . 1 . . . 1 . . Extermination . | . . . . . . . . . . . . . . . . . . . . . . . . . . Reinforcement 12 | . . . 2 . . . . . 1 1 . . . 3 . . . . 2 . . . 1 . 2 Assault 1 | . . . . . . . . . . . . . . . . . . . . . . . . . 1 Garrison 1 | . . . . . . . . . . . . . . . . . . . . . . . . . 1 Intercept 5 | . . . . . . . . . . . . . . . . . . . . . . . . 1 4 Searches Triggered 1 | . . . . . . . . . . . . . . . . . . . 1 . . . . . . Data Miner Redirects 1 | . . . . . . . . . . 1 . . . . . . . . . . . . . . . Construction Impeded 3 | . . . . . . . . . . 1 . . . 2 . . . . . . . . . . . Haulers Reinforced 1 | . . . . . . . . . . . . . . . . . . . 1 . . . . . . Active Scanning Responses . | . . . . . . . . . . . . . . . . . . . . . . . . . . Cargo Convoy Interrupts . | . . . . . . . . . . . . . . . . . . . . . . . . . . Stealth | -11 -10 -9 -8 -7 -7 -7 -7 -6 -6 -6 -6 -6 -6 -5 -5 -5 -5 -4 -4 -4 -4 -3 -3 -2 -1 --------- Run | Jun Mat Mat Mat Fac Low Low Dat Pro Fac Ext Cet Arc Hub Fac Upp Upp Zhi Pro Fac Arm Lab Res Tes Res Acc Distress Signals 11 | . . . 1 . . . . . . 1 1 . . 2 . . . . 2 . . . 1 1 2 Communications Jammed 4 | . . . . . . . . . . . . . . . . . . . 4 . . . . . . Distress Signals 4 | . . . . . . . . . . . . . . . . . . . 4 . . . . . . Times Spotted 285 | . 1 7 22 1 5 19 . 5 1 26 6 4 8 14 9 1 . 11 46 . . 24 17 12 46 Peak Tracking Total 26 | . 1 6 16 1 3 12 . 3 1 8 5 4 4 10 6 1 . 9 13 . . 13 8 12 26 Tactical Retreats 45 | . . 1 2 . 1 5 . . . 5 . . 1 3 1 . . 2 9 . . 4 . 1 10 Traps | -11 -10 -9 -8 -7 -7 -7 -7 -6 -6 -6 -6 -6 -6 -5 -5 -5 -5 -4 -4 -4 -4 -3 -3 -2 -1 ------- Run | Jun Mat Mat Mat Fac Low Low Dat Pro Fac Ext Cet Arc Hub Fac Upp Upp Zhi Pro Fac Arm Lab Res Tes Res Acc Traps Triggered 10 | . . . 2 . . . . . . 5 . . . . . . . . 1 . . . 1 . 1 Indirectly . | . . . . . . . . . . . . . . . . . . . . . . . . . . Trap Hack Attempts . | . . . . . . . . . . . . . . . . . . . . . . . . . . Triggered . | . . . . . . . . . . . . . . . . . . . . . . . . . . Disarmed . | . . . . . . . . . . . . . . . . . . . . . . . . . . Reprogrammed . | . . . . . . . . . . . . . . . . . . . . . . . . . . Reused . | . . . . . . . . . . . . . . . . . . . . . . . . . . Traps Extracted . | . . . . . . . . . . . . . . . . . . . . . . . . . . Installed . | . . . . . . . . . . . . . . . . . . . . . . . . . . Triggered . | . . . . . . . . . . . . . . . . . . . . . . . . . . Machines | -11 -10 -9 -8 -7 -7 -7 -7 -6 -6 -6 -6 -6 -6 -5 -5 -5 -5 -4 -4 -4 -4 -3 -3 -2 -1 ---------- Run | Jun Mat Mat Mat Fac Low Low Dat Pro Fac Ext Cet Arc Hub Fac Upp Upp Zhi Pro Fac Arm Lab Res Tes Res Acc Machines Disabled 13 | . . . . . . . . . . . . . 10 . . . . . 1 . 1 . 1 . . Max in Single Turn 10 | . . . . . . . . . . . . . 10 . . . . . 1 . 1 . 1 . . Garrison Access 3 | . . . . . . . . . . . . . . 1 . . . . . . . 1 . . 1 Network Hub 1 | . . . . . . . . . . . . . 1 . . . . . . . . . . . . Energy Cycler 1 | . . . . . . . . . . . . . . . . . . . . . . . . . 1 Machines Repaired . | . . . . . . . . . . . . . . . . . . . . . . . . . . Machines Sabotaged . | . . . . . . . . . . . . . . . . . . . . . . . . . . Overloaded Fab Kills . | . . . . . . . . . . . . . . . . . . . . . . . . . . Hacking | -11 -10 -9 -8 -7 -7 -7 -7 -6 -6 -6 -6 -6 -6 -5 -5 -5 -5 -4 -4 -4 -4 -3 -3 -2 -1 --------- Run | Jun Mat Mat Mat Fac Low Low Dat Pro Fac Ext Cet Arc Hub Fac Upp Upp Zhi Pro Fac Arm Lab Res Tes Res Acc Machines Accessed 29 | . . . . 1 . . 3 . 2 3 1 . . 7 . . 2 . 3 . 1 3 2 . 1 Terminals 16 | . . . . 1 . . . . 1 3 1 . . 3 . . . . 2 . . 2 2 . 1 Fabricators 3 | . . . . . . . . . . . . . . 2 . . . . 1 . . . . . . Repair Stations . | . . . . . . . . . . . . . . . . . . . . . . . . . . Recycling Units 1 | . . . . . . . . . 1 . . . . . . . . . . . . . . . . Scanalyzers . | . . . . . . . . . . . . . . . . . . . . . . . . . . Garrison Access 3 | . . . . . . . . . . . . . . 2 . . . . . . . 1 . . . Total Hacks 109 | . . . . 3 . . 22 . 8 7 2 . . 31 . . 9 . 14 . 1 8 3 . 1 Successful 56 | . . . . 1 . . 22 . 5 2 1 . . 5 . . 9 . 6 . 1 2 1 . 1 Failed 53 | . . . . 2 . . . . 3 5 1 . . 26 . . . . 8 . . 6 2 . . Catastrophic 13 | . . . . . . . . . . . 1 . . 7 . . . . 1 . . 4 . . . Database Lockouts . | . . . . . . . . . . . . . . . . . . . . . . . . . . Manual 27 | . . . . 2 . . . . 2 2 . . . 11 . . . . 8 . 1 1 . . . Terminals 59 | . . . . 3 . . . . 5 7 2 . . 21 . . . . 11 . . 6 3 . 1 Fabricators 9 | . . . . . . . . . . . . . . 6 . . . . 3 . . . . . . Repair Stations . | . . . . . . . . . . . . . . . . . . . . . . . . . . Recycling Units 3 | . . . . . . . . . 3 . . . . . . . . . . . . . . . . Scanalyzers . | . . . . . . . . . . . . . . . . . . . . . . . . . . Garrison Access 6 | . . . . . . . . . . . . . . 4 . . . . . . . 2 . . . Terminal Hacks 48 | . . . . 1 . . 22 . 2 2 1 . . 4 . . 9 . 3 . 1 1 1 . 1 Record 8 | . . . . . . . 2 . . . . . . . . . 5 . . . 1 . . . . Part Schematic 11 | . . . . . . . 11 . . . . . . . . . . . . . . . . . . Robot Schematic 7 | . . . . . . . 6 . . . . . . . . . . . 1 . . . . . . Robot Analysis 6 | . . . . . . . . . . 1 . . . . . . 4 . 1 . . . . . . Prototype ID Bank 3 | . . . . . . . 3 . . . . . . . . . . . . . . . . . . Open Door 2 | . . . . . . . . . . . 1 . . . . . . . . . . . 1 . . Level Access Points 1 | . . . . . . . . . . . . . . 1 . . . . . . . . . . . Branch Access Points 6 | . . . . 1 . . . . . 1 . . . 1 . . . . 1 . . 1 . . 1 Hauler Manifests 1 | . . . . . . . . . 1 . . . . . . . . . . . . . . . . Registered Components 2 | . . . . . . . . . 1 . . . . 1 . . . . . . . . . . . Zone Layout 1 | . . . . . . . . . . . . . . 1 . . . . . . . . . . . Fabricator Hacks 2 | . . . . . . . . . . . . . . . . . . . 2 . . . . . . Network Status 2 | . . . . . . . . . . . . . . . . . . . 2 . . . . . . Repair Station Hacks . | . . . . . . . . . . . . . . . . . . . . . . . . . . Recycling Unit Hacks 2 | . . . . . . . . . 2 . . . . . . . . . . . . . . . . Process 1 | . . . . . . . . . 1 . . . . . . . . . . . . . . . . Retrieve Matter 1 | . . . . . . . . . 1 . . . . . . . . . . . . . . . . Scanalyzer . | . . . . . . . . . . . . . . . . . . . . . . . . . . Garrison Access Hacks 2 | . . . . . . . . . . . . . . 1 . . . . . . . 1 . . . Seal Access 2 | . . . . . . . . . . . . . . 1 . . . . . . . 1 . . . Unauthorized Hacks 2 | . . . . . . . . . 1 . . . . . . . . . 1 . . . . . . Terminals 2 | . . . . . . . . . 1 . . . . . . . . . 1 . . . . . . Botnet 2 | . . . . . . . . . 1 . . . . . . . . . 1 . . . . . . Fabricators . | . . . . . . . . . . . . . . . . . . . . . . . . . . Repair Stations . | . . . . . . . . . . . . . . . . . . . . . . . . . . Recycling Units . | . . . . . . . . . . . . . . . . . . . . . . . . . . Scanalyzers . | . . . . . . . . . . . . . . . . . . . . . . . . . . Garrison Access . | . . . . . . . . . . . . . . . . . . . . . . . . . . Data Cores Recovered . | . . . . . . . . . . . . . . . . . . . . . . . . . . Used . | . . . . . . . . . . . . . . . . . . . . . . . . . . Hacking Detections 15 | . . . . 1 . . . . 2 2 1 . . 5 . . . . 2 . . 1 1 . . Full Trace Events 7 | . . . . 1 . . . . 1 1 1 . . 2 . . . . 1 . . . . . . Feedback Events . | . . . . . . . . . . . . . . . . . . . . . . . . . . Feedback Blocked . | . . . . . . . . . . . . . . . . . . . . . . . . . . Robot Schematics Acquired 7 | . . . . . . . 6 . . . . . . . . . . . 1 . . . . . . Robots Built . | . . . . . . . . . . . . . . . . . . . . . . . . . . Authchips . | . . . . . . . . . . . . . . . . . . . . . . . . . . Time . | . . . . . . . . . . . . . . . . . . . . . . . . . . Total Robot Build Rating . | . . . . . . . . . . . . . . . . . . . . . . . . . . Part Schematics Acquired 11 | . . . . . . . 11 . . . . . . . . . . . . . . . . . . Parts Built . | . . . . . . . . . . . . . . . . . . . . . . . . . . Authchips . | . . . . . . . . . . . . . . . . . . . . . . . . . . Time . | . . . . . . . . . . . . . . . . . . . . . . . . . . Total Part Build Rating . | . . . . . . . . . . . . . . . . . . . . . . . . . . Parts Repaired . | . . . . . . . . . . . . . . . . . . . . . . . . . . Time . | . . . . . . . . . . . . . . . . . . . . . . . . . . Parts Recycled . | . . . . . . . . . . . . . . . . . . . . . . . . . . Recycled Matter 12 | . . . . . . . . . 12 . . . . . . . . . . . . . . . . Retrieved Matter 12 | . . . . . . . . . 12 . . . . . . . . . . . . . . . . Retrieved Components . | . . . . . . . . . . . . . . . . . . . . . . . . . . Parts Scanalyzed . | . . . . . . . . . . . . . . . . . . . . . . . . . . Part Schematics Acquired . | . . . . . . . . . . . . . . . . . . . . . . . . . . Parts Damaged . | . . . . . . . . . . . . . . . . . . . . . . . . . . Bothacking | -11 -10 -9 -8 -7 -7 -7 -7 -6 -6 -6 -6 -6 -6 -5 -5 -5 -5 -4 -4 -4 -4 -3 -3 -2 -1 ------------ Run | Jun Mat Mat Mat Fac Low Low Dat Pro Fac Ext Cet Arc Hub Fac Upp Upp Zhi Pro Fac Arm Lab Res Tes Res Acc Used RIF Installer . | . . . . . . . . . . . . . . . . . . . . . . . . . . Robots Hacked . | . . . . . . . . . . . . . . . . . . . . . . . . . . Non-combat . | . . . . . . . . . . . . . . . . . . . . . . . . . . Combat . | . . . . . . . . . . . . . . . . . . . . . . . . . . Robot Hacks Applied . | . . . . . . . . . . . . . . . . . . . . . . . . . . Relay Couplers Released 2 | . . . . . . . . . . . . . . . . . . . . . . . . . 2 Machine Destruction 2 | . . . . . . . . . . . . . . . . . . . . . . . . . 2 Fabnet Peak Effective % . | . . . . . . . . . . . . . . . . . . . . . . . . . . Robots Rewired 5 | . . . . . . . . . . 4 . . . 1 . . . . . . . . . . . Allies Hacked 1 | . . . . . . . . . . . . . . . 1 . . . . . . . . . . Hacks Repelled . | . . . . . . . . . . . . . . . . . . . . . . . . . . Allies | -11 -10 -9 -8 -7 -7 -7 -7 -6 -6 -6 -6 -6 -6 -5 -5 -5 -5 -4 -4 -4 -4 -3 -3 -2 -1 -------- Run | Jun Mat Mat Mat Fac Low Low Dat Pro Fac Ext Cet Arc Hub Fac Upp Upp Zhi Pro Fac Arm Lab Res Tes Res Acc Total Allies 25 | . . . . . . . . 1 . 12 . . . 1 . . . . . . . . . . 11 Largest Group 7 | . . . . . . . . 1 . 7 . . . 1 1 . . . . . . . . . 5 Highest-Rated Group 372 | . . . . . . . . 96 . 227 . . . 49 49 . . . . . . . . . 372 Highest-Rated Ally 131 | . . . . . . . . 96 . 39 . . . 49 49 . . . . . . . . . 131 Total Orders 2 | . . . . . . . . . . . . . . . 2 . . . . . . . . . . STAY 1 | . . . . . . . . . . . . . . . 1 . . . . . . . . . . FOLLOW 1 | . . . . . . . . . . . . . . . 1 . . . . . . . . . . Ally Attacks 130 | . . . . . . . . 17 . 97 . . . 1 4 . . . . . . . . . 11 Total Damage 3282 | . . . . . . . . 685 . 1638 . . . 191 537 . . . . . . . . . 231 Kills 18 | . . . . . . . . 4 . 8 . . . 1 5 . . . . . . . . . . Allies Corrupted 3 | . . . . . . . . . . . . . . . 1 . . . . . . . . . 2 Allies Melted 1 | . . . . . . . . . . 1 . . . . . . . . . . . . . . . Intel | -11 -10 -9 -8 -7 -7 -7 -7 -6 -6 -6 -6 -6 -6 -5 -5 -5 -5 -4 -4 -4 -4 -3 -3 -2 -1 ------- Run | Jun Mat Mat Mat Fac Low Low Dat Pro Fac Ext Cet Arc Hub Fac Upp Upp Zhi Pro Fac Arm Lab Res Tes Res Acc Robot Analysis Total 6 | . . . . . . . . . . 1 . . . . . . 4 . 1 . . . . . . Derelict Logs Recovered 7 | . . . . . . 2 . 1 . . . . . . 1 . . 3 . . . . . . . Drone Launches . | . . . . . . . . . . . . . . . . . . . . . . . . . . Drone Recoveries . | . . . . . . . . . . . . . . . . . . . . . . . . . . Exploration | -11 -10 -9 -8 -7 -7 -7 -7 -6 -6 -6 -6 -6 -6 -5 -5 -5 -5 -4 -4 -4 -4 -3 -3 -2 -1 ------------- Run | Jun Mat Mat Mat Fac Low Low Dat Pro Fac Ext Cet Arc Hub Fac Upp Upp Zhi Pro Fac Arm Lab Res Tes Res Acc Turns Passed 4091 | 58 44 78 125 33 266 159 42 258 238 546 32 476 49 151 98 121 131 119 377 1 65 156 87 93 288 Spaces Moved 7439 | 37 83 145 240 59 526 298 84 427 314 719 82 62 113 320 268 234 161 362 906 1 105 379 255 307 952 Core 2275 | 4 83 145 240 59 526 298 84 427 263 43 . . . . . . . . . . . . . . 103 Treads 33 | 33 . . . . . . . . . . . . . . . . . . . . . . . . . Legs . | . . . . . . . . . . . . . . . . . . . . . . . . . . Wheels . | . . . . . . . . . . . . . . . . . . . . . . . . . . Hover . | . . . . . . . . . . . . . . . . . . . . . . . . . . Flight 5131 | . . . . . . . . . 51 676 82 62 113 320 268 234 161 362 906 1 105 379 255 307 849 Fastest Speed 10 | 50 50 50 50 50 50 50 50 50 28 25 28 34 40 27 27 27 30 30 34 40 40 31 31 24 10 Average Speed 37 | 148 50 50 50 50 50 50 50 50 47 36 30 35 40 31 27 27 35 31 36 40 40 34 31 24 23 Slowest Speed 250 | 160 50 50 50 50 50 50 50 250 50 150 37 40 40 40 27 30 100 34 40 40 40 40 31 31 100 Overloaded Moves . | . . . . . . . . . . . . . . . . . . . . . . . . . . Propulsion Burnouts . | . . . . . . . . . . . . . . . . . . . . . . . . . . Robots Hopped 103 | . . . . . . . . . . 5 4 2 4 . 2 1 . 3 19 . . 8 12 5 38 Cave-ins Triggered . | . . . . . . . . . . . . . . . . . . . . . . . . . . Teleports 2 | . . . . . . . . . . . . . . . . . . . . 1 . . 1 . . Exploration Rate (%) 43 | 3 21 28 39 3 78 51 73 74 9 73 74 75 22 14 48 49 61 70 35 . 83 12 46 15 35 Regions Visited 25 Branch Regions 15 Pre-discovered Areas 5 | . . . . . . . 1 . . . . . . . . . 3 1 . . . . . . . Known Exits Taken 8 | . . . . 1 . . . . 1 1 . . . 1 1 . . 1 1 . . 1 . . . Unknown Exits Taken 17 | 1 1 1 1 . 1 1 1 1 . . 1 1 1 . . 1 1 . . 1 1 . 1 1 . Scrap Searched 7 | . . . . . 3 2 . 1 . . . . . . . . . 1 . . . . . . . Spaces Dug 36 | . . . . . . . . 21 4 . . . . . . . . . 10 . . 1 . . . Terrain Destroyed 317 | . . . . . . . . 94 4 . . . 179 13 . . . . 26 . . 1 . . . Melee 5 | . . . . . . . . . 4 . . . . . . . . . . . . 1 . . . Projectile . | . . . . . . . . . . . . . . . . . . . . . . . . . . AOE 312 | . . . . . . . . 94 . . . . 179 13 . . . . 26 . . . . . . Terrain Rammed . | . . . . . . . . . . . . . . . . . . . . . . . . . . Walls Destroyed . | . . . . . . . . . . . . . . . . . . . . . . . . . . Machines Disabled . | . . . . . . . . . . . . . . . . . . . . . . . . . . Actions | -11 -10 -9 -8 -7 -7 -7 -7 -6 -6 -6 -6 -6 -6 -5 -5 -5 -5 -4 -4 -4 -4 -3 -3 -2 -1 --------- Run | Jun Mat Mat Mat Fac Low Low Dat Pro Fac Ext Cet Arc Hub Fac Upp Upp Zhi Pro Fac Arm Lab Res Tes Res Acc Total 8479 | 38 84 149 246 61 527 306 83 455 385 965 84 508 111 356 290 286 214 364 917 1 118 390 248 318 975 Wait 773 | . . . . . . . . 12 45 116 7 434 . 4 25 50 33 5 . . . 7 . . 35 Move 7231 | 36 82 144 239 58 525 297 83 426 313 712 74 58 104 319 263 231 160 356 871 . 104 362 231 297 886 Hop 80 | . . . . . . . . . . 1 3 1 4 . 2 1 . 2 15 . . 8 11 4 28 Pick Up 27 | . 2 1 3 1 . . . 1 4 2 . 2 . 1 . . 1 . . . 2 . 1 3 3 Fast Attach 77 | 2 . 2 2 1 2 1 . . 11 3 . 2 . 4 . . 4 1 12 . 4 9 1 7 9 Attach 32 | . . . . 1 . 1 . 5 . 2 . 3 1 4 . 1 2 . 2 1 1 1 2 1 4 Detach 16 | . . 1 . . . . . 5 . . . 1 1 3 . 1 1 . 2 . 1 . . . . Swap 1 | . . . . . . . . . . 1 . . . . . . . . . . . . . . . Drop 29 | . . . 2 . . . . . 4 2 . 3 . . . . 1 . 5 . 1 2 1 6 2 Fire 12 | . . . . . . . . 6 . . . . 1 2 . . . . 3 . . . . . . Melee 60 | . . . . . . . . . 8 17 . 4 . 6 . 2 12 . 4 . 5 1 1 . . Ram 8 | . . 1 . . . 7 . . . . . . . . . . . . . . . . . . . Kick . | . . . . . . . . . . . . . . . . . . . . . . . . . . Crush . | . . . . . . . . . . . . . . . . . . . . . . . . . . Escape Stasis 68 | . . . . . . . . . . 57 . . . . . . . . 3 . . . . . 8 Rewire 65 | . . . . . . . . . . 52 . . . 13 . . . . . . . . . . . Trap . | . . . . . . . . . . . . . . . . . . . . . . . . . . Miscellaneous . | . . . . . . . . . . . . . . . . . . . . . . . . . . Route ------- -11/Junkyard -10/Materials -9/Materials (discovered 2 exits: [*Mat] / [*Min]) -8/Materials -7/Factory (discovered 2 exits: *Low x2) -7/Lower Caves -7/Lower Caves (discovered 2 exits: *Fac / *Dat) -7/Data Miner -6/Proximity Caves -6/Factory (discovered 4 exits: Low x2 / *Ext x2) -6/Extension (discovered 2 exits: *Fac / *Cet) -6/Cetus -6/Archives (discovered 2 exits: [*Hub x2]) -6/Hub_04(d) -5/Factory (discovered 6 exits: Fac x4 / *Upp x2) -5/Upper Caves -5/Upper Caves -5/Zhirov -4/Proximity Caves -4/Factory (discovered 5 exits: *Res x2 / Upp x2 / *Arm) -4/Armory -4/Lab -3/Research (discovered 2 exits: *Tes x2) -3/Testing -2/Research -1/Access (discovered 1 exit: Com) History --------- Turn | Location | Event 24 | -11/Junkyard | Discovered new exit (range 15) 59 | -11/Junkyard | Entered Materials 79 | -10/Materials | Discovered new exit (range 15) 103 | -10/Materials | Entered another Materials area 103 | -9/Materials | Evolved 2 slots: Propulsion x1, Utility x1 147 | -9/Materials | Discovered new exit (range 10) 176 | -9/Materials | Discovered new exit (range 11) 181 | -9/Materials | Entered another Materials area 181 | -8/Materials | Evolved 2 slots: Propulsion x1, Utility x1 298 | -8/Materials | Discovered new exit (range 16) 306 | -8/Materials | Entered Factory 306 | -7/Factory | Evolved 2 slots: Propulsion x1, Utility x1 310 | -7/Factory | Build established: Mutant 313 | -7/Factory | Identified exit to Lower Caves 336 | -7/Factory | Lost 3 parts (2n1u) 339 | -7/Factory | Entered Lower Caves 546 | -7/Lower Caves | Encountered a Warlord checkpoint 603 | -7/Lower Caves | Discovered new exit (range 6) 605 | -7/Lower Caves | Entered another Lower Caves area 624 | -7/Lower Caves | Discovered new exit (range 4) 630 | -7/Lower Caves | Learned 4 Factory zone layouts 702 | -7/Lower Caves | Learned Factory emergency access door positions 755 | -7/Lower Caves | Discovered new exit (range 18) 764 | -7/Lower Caves | Entered Data Miner 764 | -7/Data Miner | Discovered new exit (range 7) 772 | -7/Data Miner | Met Data Miner 789 | -7/Data Miner | Learned location of Section 7 (-2) 789 | -7/Data Miner | Acquired the access code to Warlord's prototype stash 795 | -7/Data Miner | Received God Mode back door access code from Data Miner 806 | -7/Data Miner | Entered Proximity Caves 878 | -6/Proximity Caves | Spotted B-75 Beast 879 | -6/Proximity Caves | Core integrity fell below 50% 893 | -6/Proximity Caves | Escorted by Enhanced Grunt 920 | -6/Proximity Caves | Allies destroyed B-75 Beast 950 | -6/Proximity Caves | Attracted the attention of an 0b10 checkpoint 1029 | -6/Proximity Caves | Learned 4 Factory zone layouts 1047 | -6/Proximity Caves | Discovered new exit (range 16) 1064 | -6/Proximity Caves | Entered Factory 1064 | -6/Factory | Evolved 2 slots: Propulsion x1, Utility x1 1065 | -6/Factory | Identified exit to Lower Caves 1065 | -6/Factory | Identified exit to Extension 1298 | -6/Factory | Discovered exit to Extension (range 10) 1302 | -6/Factory | Entered Extension 1316 | -6/Extension | Identified exit to Cetus 1318 | -6/Extension | Rescued a captive Derelict 1336 | -6/Extension | Rescued a captive Derelict 1337 | -6/Extension | Rescued a captive Derelict 1342 | -6/Extension | Rescued a captive Derelict 1482 | -6/Extension | Build established: Hacker-Mutant 1555 | -6/Extension | Rescued a captive Derelict 1585 | -6/Extension | Rescued a captive Derelict 1594 | -6/Extension | Spotted B-75 Beast 1608 | -6/Extension | Spotted B-75 Beast 1622 | -6/Extension | Rescued a captive Derelict 1622 | -6/Extension | Rescued a captive Derelict 1623 | -6/Extension | Rescued a captive Derelict 1633 | -6/Extension | Rescued a captive Derelict 1638 | -6/Extension | Rescued a captive Derelict 1650 | -6/Extension | Discovered new exit (range 10) 1847 | -6/Extension | Incoming investigation squad redirected 1848 | -6/Extension | Entered Cetus 1852 | -6/Cetus | Spotted Cetus Guard 1852 | -6/Cetus | Spotted Cetus Guard 1852 | -6/Cetus | Spotted Cetus Guard 1852 | -6/Cetus | Spotted Cetus Guard 1865 | -6/Cetus | Build established: Hacker-Sprinter 1873 | -6/Cetus | Discovered new exit (range 21) 1880 | -6/Cetus | Entered Archives 1909 | -6/Archives | Lost 5 parts (1p3n1u) 2176 | -6/Archives | Build established: Hacker-Mutant 2346 | -6/Archives | Discovered new exit (range 22) 2348 | -6/Archives | Discovered new exit (range 22) 2356 | -6/Archives | Entered Hub_04(d) 2368 | -6/Hub_04(d) | Discovered new exit (range 12) 2399 | -6/Hub_04(d) | Network Hub disabled 2404 | -6/Hub_04(d) | Spotted Lightning 2405 | -6/Hub_04(d) | Spotted Lightning 2405 | -6/Hub_04(d) | Spotted Lightning 2405 | -6/Hub_04(d) | Entered Factory 2405 | -5/Factory | Evolved 2 slots: Propulsion x1, Utility x1 2435 | -5/Factory | Identified exit to Factory 2466 | -5/Factory | Identified exit to Upper Caves 2487 | -5/Factory | Spotted B-75 Beast 2556 | -5/Factory | Garrison activated, responded to threat 2556 | -5/Factory | Entered Upper Caves 2556 | -5/Upper Caves | Accompanied by 1 ally 2558 | -5/Upper Caves | Identified exit to Upper Caves 2654 | -5/Upper Caves | Entered another Upper Caves area 2759 | -5/Upper Caves | Spotted B-75 Beast 2773 | -5/Upper Caves | Discovered new exit (range 9) 2775 | -5/Upper Caves | Entered Zhirov 2775 | -5/Zhirov | Discovered new exit (range 3) 2781 | -5/Zhirov | Met Zhirov 2787 | -5/Zhirov | Learned location of Quarantine (-2) 2787 | -5/Zhirov | Learned location of Testing (-3) 2787 | -5/Zhirov | Learned location of Command (-1) 2788 | -5/Zhirov | Zhirov requested help retrieving the SGEMP Prototype 2796 | -5/Zhirov | Found Alien Artifact 2796 | -5/Zhirov | Identified Integrated Dissipator 2796 | -5/Zhirov | Installed Integrated Dissipator, increased core heat dissipation (+20) 2893 | -5/Zhirov | Found Alien Artifact 2906 | -5/Zhirov | Entered Proximity Caves 2934 | -4/Proximity Caves | Build established: Hacker-Sprinter 2943 | -4/Proximity Caves | Spotted B-86 Titan 2980 | -4/Proximity Caves | Attracted the attention of an 0b10 checkpoint 3024 | -4/Proximity Caves | Learned Research emergency access door positions 3025 | -4/Proximity Caves | Entered Factory 3025 | -4/Factory | Evolved 2 slots: Propulsion x1, Utility x1 3096 | -4/Factory | Found Prototype Hackware 3096 | -4/Factory | Identified Exp. Hacking Suite 3169 | -4/Factory | Discovered new exit (range 22) 3188 | -4/Factory | Identified exit to Upper Caves 3188 | -4/Factory | Identified exit to Armory 3221 | -4/Factory | Lost 5 parts (1n4u) 3245 | -4/Factory | Spotted B-86 Titan 3275 | -4/Factory | Search patrols dispatched 3278 | -4/Factory | Lost 3 parts (1n2u) 3287 | -4/Factory | Discovered new exit (range 11) 3401 | -4/Factory | Core integrity fell below 50% 3402 | -4/Factory | Entered Armory 3402 | -4/Armory | Identified Transdimensional Reconstructor 3402 | -4/Armory | Warped through subspace to slip node 3402 | -4/Armory | Discovered new exit (range 1) 3403 | -4/Armory | Entered Lab 3403 | -4/Lab | Discovered new exit (range 9) 3408 | -4/Lab | Unable to decrypt terminal 3408 | -4/Lab | Opened the door to a hidden lab 3409 | -4/Lab | Gained access to the hidden lab's interior 3413 | -4/Lab | Found Alien Artifact 3413 | -4/Lab | Identified Core Reset Matrix 3413 | -4/Lab | Used Core Reset Matrix 3415 | -4/Lab | Detected by scanners 3417 | -4/Lab | Sensed 3 artifacts in vicinity 3421 | -4/Lab | Found Integrated Mediator 3421 | -4/Lab | Installed Integrated Mediator, increased core attachment efficiency. 3429 | -4/Lab | Found Core Expander 3429 | -4/Lab | Installed Core Expander, added new Utility slot 3438 | -4/Lab | Found Transdimensional Reconstructor 3448 | -4/Lab | Found Prototype Hackware 3450 | -4/Lab | Found Prototype Protection 3450 | -4/Lab | Identified Med. Regenerative Plating 3464 | -4/Lab | Unable to decrypt terminal 3465 | -4/Lab | Discovered new exit (range 6) 3466 | -4/Lab | Unable to decrypt terminal 3468 | -4/Lab | Entered Research 3468 | -3/Research | Evolved 2 slots: Propulsion x1, Utility x1 3571 | -3/Research | Identified exit to Testing 3624 | -3/Research | Entered Testing 3649 | -3/Testing | Found Prototype Energy Cannon 3649 | -3/Testing | Identified Null Cannon 3678 | -3/Testing | Spotted Striker 3678 | -3/Testing | Spotted Striker 3684 | -3/Testing | Spotted Alpha 7 3687 | -3/Testing | Stole the SGEMP Prototype 3688 | -3/Testing | Warped through subspace 3706 | -3/Testing | Discovered new exit (range 13) 3711 | -3/Testing | Entered Research 3711 | -2/Research | Evolved 2 slots: Propulsion x1, Utility x1 3794 | -2/Research | Spotted B-90 Cyclops 3802 | -2/Research | Discovered new exit (range 6) 3804 | -2/Research | Intercept squad dispatched 3804 | -2/Research | Entered Access 3804 | -1/Access | Evolved 2 slots: Propulsion x1, Utility x1 3805 | -1/Access | Attacked by Zhirov 3841 | -1/Access | Spotted B-99 Colossus 3859 | -1/Access | Energy Cycler disabled 3860 | -1/Access | Identified exit to Command 3879 | -1/Access | Lost 3 parts (1n2u) 3907 | -1/Access | Spotted B-99 Colossus 3907 | -1/Access | Spotted B-99 Colossus 3921 | -1/Access | Garrison activated, responded to threat 3949 | -1/Access | Lost 4 parts (1p2n1u) 3952 | -1/Access | Intercept squad dispatched 3979 | -1/Access | Build established: Wizard-Sprinter 3980 | -1/Access | Spotted Tracker 3980 | -1/Access | Spotted Tracker 4004 | -1/Access | Spotted Combat Programmer 4006 | -1/Access | Core integrity fell below 50% 4026 | -1/Access | Emitted hypermatrix ping 4030 | -1/Access | Spotted Combat Programmer 4031 | -1/Access | Assembled emerged from beneath the floor 4033 | -1/Access | Spotted B-99 Colossus 4052 | -1/Access | Intercept squad dispatched 4064 | -1/Access | Core integrity fell below 20% 4073 | -1/Access | Lost 18 parts (1p11n5u1w) 4092 | -1/Access | Destroyed by Tracker with Linked Autogun Last Messages --------------- 04031_ EMDS Slug penetrates as-83695. 04042_ Knocked back. 04042_ Penetrated by Slug. 04042_ Cld. Q-thruster destroyed. 04042_ Slug penetrates Garrison Access. 04042_ Slug penetrates Wall. 04045_ O-32 Director: "IFF HANDSHAKE FAILED. SECURING TERMINAL." 04046_ Slug penetrates Wall. 04046_ Penetrated by Slug. 04046_ Slug penetrates Wall. 04049_ Detected hypermatrix ping. 04049_ Triggered Blade Trap. 04049_ Massive razor-sharp blades shoot up from within the floor. 04049_ Cld. Q-thruster severed. 04049_ Enh. Optical Array severed. 04049_ Imp. Hacking Suite severed. 04049_ ALERT: Hostiles spotted, dispatching reinforcements to Terminal A011. 04052_ ALERT: Reliable intel has pinpointed LRC-V3, intercept squad en route. Map ----- +----------------------------------------------------+ | ??????????????????????????????????????# #?????? | | ??????????????????????????????????????# #?????? | | ??????????????????????????????????????# #?????? | | ??????????????????????????????????????# #?????? | | ??????????????????????????????????????# #?????? | | ????????????????????????????###+####### #?????? | | ????????????????????????????# #?????? | | ????????????????????????????+ #?????? | | ????????????????????????????# #?????? | | ????????????????????????????###+####### ####### | | ??????????????????????????????????????# | | ??????????????????????????????????????# | | ??????????????????????????????????????# | | ??????????????????????????????????????# ""G" | | ??????????????????????????????????????# " " | | ??????????????????????????????????????#!!! " " | | ????????????????????##############??###!!! | | ????????????????????# #??# !!! | | ????????????????????# ! #??# | | ????????????????????# #??### | | ????????????????????# #????# | | ????????????????????# #??### | | ????????????????????# " #??# #"## | | ????????????????????# """ #??# #?#? | | ????????????????????# """#??# #??? | | ????????????????????# @ " #??# ]]] #??? | | ????????????????????# = #??# ]]] #??? | | ????????????????????# #??# ]]! #??? | | ????????????????????# #??# #??? | | ???????????>???????####s############# ###? | | ???????????????????" #? | | ???????????????????" = + | | ???????????????????" ^ # | | ???????????????????####+#############+###### #? | | ???????????????????????????????????????????? #? | | ???????????????????????????????????????????? #? | | ????????????????????????????????????????????#####? | | ?????????????????????????????????????????????????? | | ?????????????????????????????????????????????????? | | ?????????????????????????????????????????????????? | | ?????????????????????????????????????????????????? | | ?????????????????????????????????????????????????? | | ?????????????????????????????????????????????????? | | ?????????????????????????????????????????????????? | | ?????????????????????????????????????????????????? | | ?????????????????????????????????????????????????? | | ?????????????????????????????????????????????????? | | ?????????????????????????????????????????????????? | | ?????????????????????????????????????????????????? | | ?????????????????????????????????????????????????? | +----------------------------------------------------+ Best States ------------- Heat Dissipation 72 Energy Generation 25 Energy Capacity 325 Matter Stores 550 Matter Capacity 550 Sight Range 22 Terrain Scan Density 10 Jamming Range 16 Power Amplification 30 Armor Coverage 225 Core Shielding 40 Evasion (%) 74 Core Analysis 6 Recoil Reduction 6 Offensive Hacking 36 Defensive Hacking 70 Authchip Count 1 Item Schematics ----------------- None Robot Schematics ------------------ None Fabricated ------------ Nothing Alien Tech Used ----------------- Integrated Dissipator Transdimensional Reconstructor Core Reset Matrix Integrated Mediator Core Expander Achievements -------------- None Challenges ------------ None Game ------ Seed CryofiberSpliceRifle Manual? 0 Play Time 00:56:26 Cumulative 203.2 hours Start 2023.05.12 @ 20:09:09 End 2023.05.12 @ 21:04:27 Sessions 1 Manual Loads 0 Difficulty Rogue Special Mode None Game No. 572 Rogue 572 Adventurer 0 Explorer 0 Win Type - Total 9 Types 7/0/1/1/0/0/0/0/0 Lore% 80 Gallery% 78 Achievement% 71 Wizard Run 0 Options --------- ASCII 0 Keyboard 0 Movement Numpad Keybinds 0 Fullscreen 1 Font 16/SmallcapsGlow Map View 75x55 Tactical HUD 1 Map Filters NONE Filters NONE Steam 1 RUN: 96dc0b71-9c2d-42bb-a93c-25da747d753f